bitfinex/quotes_BTCUSD_20260104
["timestamp","ask_amount","ask_price","bid_price","bid_amount"]
[1767535481771,0.06578752,91203.0,91198.0,0.06579041]
[1767535482395,0.06578734,91203.0,91199.0,0.01096503]
[1767535482611,0.01096455,91203.0,91199.0,0.01096503]
[1767535483439,0.06578734,91203.0,91198.0,0.06579041]
[1767535483854,0.06578734,91203.0,91199.0,0.01096503]
[1767535484064,0.01096455,91203.0,91199.0,0.06579015]
[1767535484272,0.06578714,91204.0,91199.0,0.06579015]
[1767535484484,0.01096455,91203.0,91198.0,0.06579041]
[1767535484920,0.06578741,91203.0,91198.0,0.01096515]
[1767535485423,0.06578803,91202.0,91198.0,0.01096515]
[1767535485803,0.01096431,91205.0,91201.0,0.01096479]
[1767535486324,0.06578591,91205.0,91200.0,0.11151509]
[1767535487436,0.06578591,91205.0,91201.0,0.01096479]
[1767535487646,0.06578595,91205.0,91201.0,0.01096479]
[1767535487790,0.01096431,91205.0,91201.0,0.06578867]
[1767535490642,0.06578603,91205.0,91201.0,0.01096479]
[1767535490858,0.06578603,91205.0,91200.0,0.11151509]
[1767535490859,0.01096443,91204.0,91200.0,0.11151509]
[1767535491068,0.06578705,91204.0,91200.0,0.04572611]
[1767535491365,0.01096443,91204.0,91200.0,0.11147019]
[1767535491698,0.01096443,91204.0,91200.0,0.11092722]
[1767535492308,0.01096443,91204.0,91200.0,0.04513789]
[1767535493187,0.06578745,91203.0,91199.0,0.06578972]
[1767535493387,0.01096455,91203.0,91199.0,0.06578972]
[1767535494090,0.06578742,91203.0,91199.0,0.06578972]
[1767535494247,0.06578742,91203.0,91199.0,0.11151583]
[1767535494449,0.06578713,91204.0,91199.0,0.11151583]
[1767535494799,0.06578713,91204.0,91200.0,0.06578938]
[1767535496855,0.06578667,91204.0,91200.0,0.06578938]
[1767535498621,0.06578668,91204.0,91199.0,0.01096503]
[1767535498820,0.06578668,91204.0,91199.0,0.06578978]
[1767535499522,0.06578668,91204.0,91196.0,0.06579211]
[1767535499523,0.000999,91199.0,91196.0,0.06579211]
[1767535499674,0.049563,91201.0,91197.0,0.06579118]
[1767535499874,0.04467108,91201.0,91196.0,0.05150276]
[1767535500374,0.06578807,91202.0,91199.0,0.00065661]
[1767535500723,0.01096467,91202.0,91199.0,0.00065661]
[1767535501022,0.01096455,91203.0,91199.0,0.05548175]
[1767535501401,0.01096455,91203.0,91199.0,0.05548163]
[1767535502072,0.06578692,91204.0,91199.0,0.06644666]
[1767535502724,0.06578747,91203.0,91199.0,0.06644666]
[1767535502931,0.06578747,91203.0,91199.0,0.00065661]
[1767535503074,0.01096467,91202.0,91199.0,0.00065661]
[1767535503913,0.0657866,91204.0,91199.0,0.01162164]
[1767535504121,0.06578737,91203.0,91200.0,0.04685204]
[1767535504901,0.05482376,91202.0,91200.0,0.04685204]
[1767535505122,0.06578737,91203.0,91200.0,0.04685204]
[1767535507052,0.06578691,91204.0,91203.0,0.000999]
[1767535507256,0.06578691,91204.0,91203.0,0.04785104]
[1767535507641,0.06578691,91204.0,91203.0,0.04685204]
[1767535516925,0.06478791,91204.0,91203.0,0.04685204]
[1767535521944,0.06578658,91204.0,91203.0,0.04685204]
[1767535522249,0.06578658,91204.0,91200.0,0.01096491]
[1767535523600,0.01096455,91203.0,91199.0,0.05482497]
[1767535523738,0.06578605,91205.0,91200.0,0.05482417]
[1767535524566,0.06578605,91205.0,91199.0,0.06579]
[1767535525463,0.06578658,91204.0,91199.0,0.06579]
[1767535525641,0.06578734,91203.0,91199.0,0.06579]
[1767535526409,0.06569886,91203.0,91200.0,0.04685204]
[1767535529165,0.05482361,91202.0,91200.0,0.04685204]
[1767535530202,0.05482396,91201.0,91200.0,0.04685204]
[1767535537239,0.05482396,91201.0,91200.0,0.0468068]
[1767535538737,0.05482396,91201.0,91200.0,0.0458078]
[1767535539109,0.05482396,91201.0,91193.0,0.01096575]
[1767535539110,0.06579138,91198.0,91192.0,0.02192]
[1767535539333,0.04698093,91198.0,91194.0,0.06579334]
[1767535539563,0.0548253,91199.0,91194.0,0.06579334]
[1767535539841,0.0548253,91199.0,91198.0,0.00065752]
[1767535540064,0.0548253,91199.0,91198.0,0.04791985]
[1767535540270,0.06579001,91200.0,91198.0,0.00061228]
[1767535541309,0.05482516,91199.0,91198.0,0.00061228]
[1767535542145,0.06579001,91200.0,91198.0,0.00061228]
[1767535542507,0.05482516,91199.0,91198.0,0.00061228]
[1767535546419,0.06579001,91200.0,91198.0,0.00061228]
[1767535546762,0.06579001,91200.0,91198.0,0.04791985]
[1767535546963,0.06579001,91200.0,91198.0,0.00056704]
[1767535547436,0.01096491,91200.0,91198.0,0.00056704]
[1767535547733,0.00996591,91200.0,91198.0,0.00056704]
[1767535548131,0.06479074,91200.0,91198.0,0.00056704]
[1767535549071,0.00996591,91200.0,91198.0,0.00056704]
[1767535549422,0.00996591,91200.0,91198.0,0.04787461]
[1767535550044,0.05482516,91199.0,91198.0,0.04687561]
[1767535550545,0.06578875,91201.0,91199.0,0.000999]
[1767535550743,0.05482484,91200.0,91199.0,0.000999]
[1767535550887,0.05482516,91199.0,91198.0,0.04687561]
[1767535553466,0.05482516,91199.0,91198.0,0.04683038]
[1767535553869,0.05482516,91199.0,91196.0,0.05827296]
[1767535554231,0.06578975,91200.0,91196.0,0.11309973]
[1767535554430,0.06578878,91201.0,91196.0,0.1130545]
[1767535554837,0.06578947,91200.0,91196.0,0.04730757]
[1767535555356,0.06578878,91201.0,91196.0,0.05827296]
[1767535555521,0.06578878,91201.0,91196.0,0.11309944]
[1767535555723,0.06578878,91201.0,91197.0,0.06579143]
[1767535556286,0.06578878,91201.0,91197.0,0.01096527]
[1767535556798,0.06578878,91201.0,91197.0,0.06579162]
[1767535557000,0.01096479,91201.0,91197.0,0.06579162]
[1767535557230,0.01096491,91200.0,91196.0,0.11309944]
[1767535557834,0.06578832,91202.0,91197.0,0.10213393]
[1767535559166,0.05482408,91201.0,91197.0,0.10213393]
[1767535559334,0.06578887,91201.0,91197.0,0.10213393]
[1767535560157,0.01096479,91201.0,91197.0,0.1130992]
[1767535560487,0.06578832,91202.0,91195.0,0.01096551]
[1767535560682,0.06578832,91202.0,91197.0,0.06579111]
[1767535562066,0.01096503,91199.0,91193.0,0.01096575]
[1767535562269,0.06578965,91200.0,91196.0,0.01096539]
[1767535562663,0.01096491,91200.0,91196.0,0.06579232]
[1767535563417,0.06578964,91200.0,91196.0,0.01096539]
[1767535563907,0.01096479,91201.0,91197.0,0.01096527]
[1767535564108,0.04778502,91201.0,91198.0,0.01508081]
[1767535564320,0.04778502,91201.0,91197.0,0.02675632]
[1767535564874,0.04778502,91201.0,91198.0,0.06579055]
[1767535565094,0.04678602,91201.0,91199.0,0.05482512]
[1767535565811,0.04678602,91201.0,91200.0,0.05482456]
[1767535566172,0.04678602,91201.0,91199.0,0.05482512]
[1767535567773,0.04678602,91201.0,91198.0,0.06578983]
[1767535568228,0.04678602,91201.0,91199.0,0.05482482]
[1767535568599,0.01096455,91203.0,91199.0,0.06578985]
[1767535569367,0.06578732,91203.0,91199.0,0.01096503]
[1767535569849,0.01096467,91202.0,91198.0,0.11332483]
[1767535570044,0.01096467,91202.0,91198.0,0.05850015]
[1767535570293,0.06578813,91202.0,91199.0,0.047535]
[1767535571444,0.01096467,91202.0,91199.0,0.046536]
[1767535571845,0.0657875,91203.0,91199.0,0.046536]
[1767535572453,0.0657875,91203.0,91198.0,0.06579067]
[1767535572870,0.06578828,91202.0,91198.0,0.01096515]
[1767535573725,0.06578828,91202.0,91197.0,0.06579162]
[1767535574269,0.01096491,91200.0,91196.0,0.01096539]
[1767535574476,0.01096491,91200.0,91195.0,0.06579305]
[1767535574670,0.0657889,91201.0,91196.0,0.01096539]
[1767535574844,0.0657889,91201.0,91195.0,0.06579305]
[1767535574845,0.01096503,91199.0,91195.0,0.06579288]
[1767535575055,0.06579028,91199.0,91195.0,0.01096551]
[1767535575257,0.06579275,91197.0,91193.0,0.01096575]
[1767535575460,0.01096527,91197.0,91193.0,0.06579447]
[1767535575642,0.06579064,91199.0,91194.0,0.06579378]
[1767535575851,0.01096503,91199.0,91195.0,0.06579303]
[1767535576044,0.01096503,91199.0,91195.0,0.01096551]
[1767535576271,0.01096503,91199.0,91195.0,0.06579303]
[1767535576479,0.06578948,91200.0,91196.0,0.01096539]
[1767535576654,0.06578948,91200.0,91196.0,0.01092117]
[1767535576848,0.06579021,91199.0,91195.0,0.11332803]
[1767535577057,0.06579021,91199.0,91195.0,0.05850051]
[1767535577257,0.06579021,91199.0,91195.0,0.047535]
[1767535577599,0.06579021,91199.0,91195.0,0.06579301]
[1767535577737,0.06579021,91199.0,91196.0,0.047535]
[1767535578217,0.06579021,91199.0,91196.0,0.04748977]
[1767535578350,0.01096503,91199.0,91196.0,0.04748977]
[1767535578539,0.06579028,91199.0,91196.0,0.04748977]
[1767535579776,0.06578948,91200.0,91196.0,0.04748977]
[1767535580560,0.06579027,91199.0,91196.0,0.04748977]
[1767535581121,0.05482576,91198.0,91196.0,0.04748977]
[1767535581327,0.06579027,91199.0,91196.0,0.04748977]
[1767535581555,0.0548258,91198.0,91196.0,0.04748977]
[1767535581857,0.06579027,91199.0,91196.0,0.04748977]
[1767535583656,0.01096479,91201.0,91197.0,0.047535]
[1767535583885,0.01096491,91200.0,91199.0,0.000999]
[1767535584167,0.06578987,91200.0,91199.0,0.000999]
[1767535584372,0.06578987,91200.0,91197.0,0.05850027]
[1767535584526,0.06578987,91200.0,91197.0,0.047535]
[1767535584914,0.01096491,91200.0,91197.0,0.047535]
[1767535585113,0.01096491,91200.0,91197.0,0.04749078]
[1767535585517,0.06578954,91200.0,91197.0,0.04749078]
[1767535585718,0.01096479,91201.0,91200.0,0.000999]
[1767535585968,0.05482396,91201.0,91200.0,0.047535]
[1767535586168,8.945e-05,91200.0,91197.0,0.01096527]
[1767535586374,0.06578875,91201.0,91197.0,0.01096527]
[1767535587313,0.05482576,91198.0,91194.0,0.01096563]
[1767535587519,0.06579163,91197.0,91191.0,0.06579574]
[1767535587722,0.02192,91205.0,91191.0,0.06579574]
[1767535587723,0.01105436,91200.0,91195.0,0.01096551]
[1767535587898,0.01096503,91199.0,91197.0,0.000999]
[1767535588202,0.05482546,91199.0,91194.0,0.06579323]
[1767535588400,0.06579049,91199.0,91194.0,0.06579359]
[1767535588607,0.01096515,91198.0,91194.0,0.01096563]
[1767535588764,0.01096515,91198.0,91194.0,0.06579359]
[1767535589317,0.01096515,91198.0,91195.0,0.047535]
[1767535589550,0.065791,91198.0,91195.0,0.047535]
[1767535590125,0.01096503,91199.0,91195.0,0.047535]
[1767535590326,0.06579073,91199.0,91195.0,0.047535]
[1767535590469,0.06579073,91199.0,91195.0,0.05850051]
[1767535591072,0.06579099,91198.0,91195.0,0.047535]
[1767535592357,0.05482689,91197.0,91195.0,0.047535]
[1767535592735,0.05482696,91196.0,91195.0,0.047535]
[1767535592937,0.01096623,91189.0,91185.0,0.01096671]
[1767535593144,0.06579642,91191.0,91189.0,0.000999]
[1767535593315,0.06579642,91191.0,91189.0,0.04891312]
[1767535593518,0.01096587,91192.0,91189.0,0.04891312]
[1767535593519,0.06579634,91192.0,91189.0,0.04891312]
[1767535593721,0.06579634,91192.0,91189.0,0.04791412]
[1767535594092,0.01096587,91192.0,91189.0,0.04791412]
[1767535594289,0.06579546,91192.0,91189.0,0.04791412]
[1767535595314,0.0657946,91193.0,91189.0,0.04791412]
[1767535595514,0.06579483,91193.0,91189.0,0.05888035]
[1767535595718,0.01096587,91192.0,91189.0,0.04791412]
[1767535595919,0.06579483,91193.0,91189.0,0.04791412]
[1767535596292,0.01096587,91192.0,91189.0,0.04791412]
[1767535596684,0.06579483,91193.0,91189.0,0.04791412]
[1767535598814,0.01096587,91192.0,91189.0,0.04791412]
[1767535600381,0.06579483,91193.0,91189.0,0.11371148]
[1767535600587,0.06579483,91193.0,91189.0,0.11366726]
[1767535601373,0.06579483,91193.0,91189.0,0.05883613]
[1767535602525,0.01096575,91193.0,91189.0,0.11366703]
[1767535602721,0.06579453,91193.0,91189.0,0.11366703]
[1767535602933,0.06579453,91193.0,91190.0,0.04763024]
[1767535603362,0.0657931,91195.0,91193.0,0.04862924]
[1767535604077,0.06579206,91197.0,91192.0,0.01096587]
[1767535604781,0.06579206,91197.0,91192.0,0.05859611]
[1767535605097,0.05482712,91196.0,91192.0,0.05859611]
[1767535605307,0.06479351,91196.0,91192.0,0.05859611]
[1767535605513,0.06579324,91195.0,91192.0,0.04763024]
[1767535606671,0.06579324,91195.0,91190.0,0.05483013]
[1767535607290,0.06579391,91194.0,91190.0,0.06579624]
[1767535607627,0.06579391,91194.0,91190.0,0.06579661]
[1767535608026,0.06579391,91194.0,91189.0,0.02542405]
[1767535608432,0.06579391,91194.0,91190.0,0.04763024]
[1767535608628,0.06579454,91193.0,91189.0,0.02542405]
[1767535608950,0.01096575,91193.0,91189.0,0.02542405]
[1767535609253,0.01096575,91193.0,91190.0,0.04763024]
[1767535609583,0.06579481,91193.0,91190.0,0.04763024]
[1767535609803,0.06579481,91193.0,91189.0,0.01096623]
[1767535610104,0.01096551,91195.0,91191.0,0.04763024]
[1767535610304,0.0657936,91195.0,91191.0,0.04763024]
[1767535611411,0.0657936,91195.0,91190.0,0.01096611]
[1767535611585,0.000999,91191.0,91190.0,0.01096611]
[1767535611816,0.000999,91191.0,91190.0,0.06579625]
[1767535612160,0.01096467,91202.0,91192.0,0.2193147]
[1767535612276,0.04567565,91198.0,91195.0,0.01096551]
[1767535612475,0.01096491,91200.0,91195.0,0.01096551]
[1767535612476,0.06578991,91201.0,91196.0,0.11342258]
[1767535612737,0.06578991,91200.0,91195.0,0.06579195]
[1767535612877,0.01096467,91202.0,91196.0,0.01096539]
[1767535613079,0.06578993,91200.0,91195.0,0.06579262]
[1767535613715,0.06578993,91200.0,91196.0,0.01096539]
[1767535613914,0.06578952,91200.0,91196.0,0.01096539]
[1767535614550,0.01096491,91200.0,91195.0,0.06579262]
[1767535614730,0.01096491,91200.0,91196.0,0.06579217]
[1767535614927,0.01096467,91202.0,91198.0,0.05482576]
[1767535615153,0.06578923,91201.0,91196.0,0.06579229]
[1767535615791,0.01096491,91200.0,91196.0,0.06579229]
[1767535615933,0.04529891,91199.0,91196.0,0.02049338]
[1767535616138,0.01096491,91200.0,91196.0,0.02049338]
[1767535616900,0.01096491,91200.0,91197.0,0.0483116]
[1767535617062,0.01096491,91200.0,91196.0,0.02049338]
[1767535617254,0.01096491,91200.0,91196.0,0.07977037]
[1767535618082,0.01096491,91200.0,91197.0,0.0483116]
[1767535619188,0.06578882,91201.0,91197.0,0.0483116]
[1767535619620,0.06578882,91201.0,91198.0,0.0483116]
[1767535619820,0.06578878,91201.0,91198.0,0.0483116]
[1767535620332,0.02192,91203.0,91200.0,0.04801956]
[1767535620530,0.05482353,91202.0,91200.0,0.04801956]
[1767535621075,0.08770771,91203.0,91200.0,0.04801956]
[1767535621295,0.02192,91203.0,91200.0,0.04801956]
[1767535621508,0.02192,91203.0,91200.0,0.05898447]
[1767535621746,0.08770736,91203.0,91200.0,0.04801956]
[1767535621957,0.02192,91203.0,91200.0,0.10284409]
[1767535622197,0.0109631,91215.0,91205.0,0.01096431]
[1767535622375,0.43842986,91235.0,91203.0,0.04801956]
[1767535622376,0.01096226,91222.0,91215.0,0.04801956]
[1767535622569,0.0109625,91220.0,91217.0,0.04702056]
[1767535622944,0.0001516,91221.0,91217.0,0.06577704]
[1767535623144,0.01111398,91221.0,91216.0,0.06577788]
[1767535623352,0.06592596,91221.0,91220.0,0.00059833]
[1767535623543,0.01111398,91221.0,91220.0,0.00059833]
[1767535623744,0.01111398,91221.0,91220.0,0.04861789]
[1767535624254,0.01111398,91221.0,91220.0,0.00059833]
[1767535624567,0.0001516,91221.0,91220.0,0.00059833]
[1767535624941,0.02192,91224.0,91220.0,0.04861789]
[1767535625146,0.05480571,91232.0,91226.0,0.05480865]
[1767535625345,0.06576647,91232.0,91229.0,0.04801956]
[1767535625569,0.05480653,91230.0,91229.0,0.04801956]
[1767535626148,0.05480653,91230.0,91229.0,0.04717256]
[1767535626358,0.05480653,91230.0,91229.0,0.04712736]
[1767535627506,0.01096166,91227.0,91220.0,0.02251833]
[1767535627631,0.01096214,91226.0,91220.0,0.02251833]
[1767535627835,0.01096214,91223.0,91220.0,0.02251833]
[1767535628748,0.0657716,91225.0,91220.0,0.03348083]
[1767535628990,0.05481133,91222.0,91221.0,0.04801956]
[1767535629238,0.01096214,91223.0,91221.0,0.04801956]
[1767535629484,0.0109619,91225.0,91221.0,0.04801956]
[1767535629800,0.06577074,91226.0,91224.0,0.04801956]
[1767535629987,0.06577074,91226.0,91224.0,0.04797435]
[1767535630301,0.01096214,91225.0,91224.0,0.04797435]
[1767535632143,0.00093741,91224.0,91222.0,0.06577358]
[1767535632338,4.1e-07,91224.0,91222.0,0.06577358]
[1767535632539,0.01096214,91225.0,91223.0,0.05481073]
[1767535632746,0.01096154,91228.0,91223.0,0.06577287]
[1767535633061,0.06576648,91232.0,91227.0,0.01096166]
[1767535633444,0.0109613,91230.0,91226.0,0.06577015]
[1767535633643,0.06576648,91232.0,91227.0,0.06576991]
[1767535633848,0.02192,91233.0,91229.0,0.01096142]
[1767535634050,0.01096106,91232.0,91227.0,0.06576986]
[1767535634253,0.03288094,91233.0,91227.0,0.01096166]
[1767535634482,0.0657664,91232.0,91227.0,0.01096166]
[1767535635469,0.01096118,91231.0,91227.0,0.01096166]
[1767535635810,0.01096106,91232.0,91228.0,0.01096154]
[1767535636017,0.01096118,91231.0,91227.0,0.01096166]
[1767535636484,0.01096106,91232.0,91228.0,0.01096154]
[1767535636660,0.23017286,91236.0,91228.0,0.01096154]
[1767535636661,0.01095926,91247.0,91237.0,0.01096046]
[1767535636961,0.06575532,91249.0,91243.0,0.06575823]
[1767535637098,0.05855854,91248.0,91244.0,0.05479752]
[1767535637304,0.05479588,91248.0,91244.0,0.04801956]
[1767535637507,0.0109589,91250.0,91244.0,0.04801956]
[1767535637508,0.05479714,91246.0,91244.0,0.04702056]
[1767535637708,0.0657586,91243.0,91238.0,0.01096034]
[1767535637913,0.04003943,91237.0,91232.0,0.01096106]
[1767535638134,0.04003943,91237.0,91236.0,0.04768431]
[1767535638311,0.04003943,91237.0,91236.0,0.05480292]
[1767535638916,0.03904043,91237.0,91236.0,0.05480292]
[1767535639670,0.05479695,91246.0,91241.0,0.01095998]
[1767535639911,0.01095866,91252.0,91245.0,0.0109595]
[1767535640108,0.000999,91245.0,91242.0,0.01095986]
[1767535640339,0.0119585,91245.0,91241.0,0.01095998]
[1767535640458,0.0109595,91245.0,91241.0,0.01095998]
[1767535641145,0.06575671,91247.0,91242.0,0.01095986]
[1767535641442,0.000999,91242.0,91240.0,0.0109601]
[1767535641642,0.0004,91255.0,91245.0,0.0109595]
[1767535641931,0.03287842,91254.0,91250.0,0.0109589]
[1767535642138,0.03287842,91254.0,91249.0,0.06575403]
[1767535642275,0.01095854,91253.0,91249.0,0.01095902]
[1767535642480,0.01095866,91252.0,91249.0,0.04801956]
[1767535642932,0.01575125,91253.0,91248.0,0.04801956]
[1767535643147,0.02202814,91254.0,91252.0,0.04068245]
[1767535643351,0.02202814,91254.0,91252.0,0.03968345]
[1767535644479,0.05479271,91253.0,91252.0,0.03968345]
[1767535644814,0.06575221,91252.0,91248.0,0.04801956]
[1767535645583,0.06475309,91252.0,91248.0,0.01095914]
[1767535645868,0.06475309,91252.0,91249.0,0.04801956]
[1767535646447,0.05479416,91251.0,91249.0,0.04702056]
[1767535647905,0.06475403,91251.0,91248.0,0.04801956]
[1767535648313,0.05479456,91250.0,91248.0,0.04801956]
[1767535648510,0.06475403,91251.0,91248.0,0.04801956]
[1767535648721,0.06575133,91253.0,91249.0,0.04801956]
[1767535649104,0.0658592,91254.0,91250.0,0.04801956]
[1767535649538,0.06579995,91254.0,91250.0,0.04801956]
[1767535651717,0.06575135,91253.0,91250.0,0.04801956]
[1767535651912,0.01095854,91253.0,91250.0,0.04801956]
[1767535652709,0.01095854,91253.0,91246.0,0.01095938]
[1767535652911,0.01095854,91253.0,91247.0,0.04940833]
[1767535653351,0.06579995,91254.0,91250.0,0.04940833]
[1767535654534,4.889e-05,91254.0,91250.0,0.11516171]
[1767535654984,0.01100731,91254.0,91250.0,0.04940833]
[1767535655541,4.889e-05,91254.0,91250.0,0.04940833]
[1767535655742,4.889e-05,91254.0,91251.0,0.04520444]
[1767535656257,0.06579955,91254.0,91251.0,0.04520444]
[1767535656643,0.01100731,91254.0,91251.0,0.04520444]
[1767535657077,4.889e-05,91254.0,91251.0,0.04520444]
[1767535657242,4.889e-05,91254.0,91251.0,0.05616322]
[1767535657446,4.889e-05,91254.0,91251.0,0.11095697]
[1767535657717,4.889e-05,91254.0,91251.0,0.06575253]
[1767535658960,4.889e-05,91254.0,91251.0,0.01095878]
[1767535659595,4.889e-05,91254.0,91251.0,0.06575263]
[1767535660786,4.889e-05,91254.0,91251.0,0.01095878]
[1767535661190,4.889e-05,91254.0,91250.0,0.06575326]
[1767535661455,0.06579945,91254.0,91249.0,0.04520444]
[1767535661587,0.06575167,91253.0,91249.0,0.04520444]
[1767535661932,0.01095866,91252.0,91249.0,0.04520444]
[1767535662331,0.06575167,91253.0,91249.0,0.04420544]
[1767535662543,0.06575211,91252.0,91249.0,0.04420544]
[1767535662689,0.01095866,91252.0,91249.0,0.04420544]
[1767535662890,0.06575167,91253.0,91249.0,0.04420544]
[1767535663094,0.06575167,91253.0,91249.0,0.05516446]
[1767535663290,0.06575167,91253.0,91249.0,0.04420544]
[1767535663497,0.06575167,91253.0,91249.0,0.01095902]
[1767535663951,4.889e-05,91254.0,91249.0,0.01095902]
[1767535664154,4.889e-05,91254.0,91249.0,0.05616346]
[1767535664569,4.889e-05,91254.0,91250.0,0.05479422]
[1767535665006,4.889e-05,91254.0,91251.0,0.11095712]
[1767535665212,8.9e-07,91254.0,91251.0,0.11095712]
[1767535665708,0.01095931,91254.0,91251.0,0.04520444]
[1767535665900,0.06575189,91254.0,91251.0,0.04520444]
[1767535666110,0.05479283,91253.0,91251.0,0.04520444]
[1767535666337,0.06575189,91254.0,91251.0,0.04520444]
[1767535666547,8.9e-07,91254.0,91251.0,0.04515644]
[1767535666971,0.01095931,91254.0,91251.0,0.04515644]
[1767535667137,0.06615082,91255.0,91254.0,0.00099811]
[1767535667664,0.11341431,91255.0,91254.0,0.00099811]
[1767535667863,0.06615082,91255.0,91250.0,0.06575314]
[1767535668282,0.0004,91255.0,91251.0,0.01095878]
[1767535668417,0.0657494,91256.0,91252.0,0.01095866]
[1767535668618,0.0657494,91256.0,91251.0,0.06575258]
[1767535669315,0.01095818,91256.0,91252.0,0.06575189]
[1767535669514,0.13548399,91257.0,91252.0,0.06575189]
[1767535669800,0.06574915,91256.0,91252.0,0.06575189]
[1767535669917,0.01095818,91256.0,91252.0,0.06575189]
[1767535670125,0.13548399,91257.0,91252.0,0.06575189]
[1767535670332,0.06973509,91257.0,91253.0,0.01095854]
[1767535670532,0.0004,91258.0,91257.0,4.64e-05]
[1767535670800,0.0004,91264.0,91260.0,0.06570064]
[1767535670942,0.0004,91264.0,91261.0,0.04029766]
[1767535671143,0.0004,91264.0,91261.0,0.06356355]
[1767535671646,0.0004,91264.0,91261.0,0.00877565]
[1767535671887,0.0004,91264.0,91261.0,0.06356356]
[1767535672127,0.00033123,91264.0,91261.0,0.04520444]
[1767535672337,0.00033123,91264.0,91262.0,0.04520444]
[1767535673085,0.05511748,91264.0,91262.0,0.04520444]
[1767535673280,0.05478671,91263.0,91262.0,0.04520444]
[1767535673486,0.00033123,91264.0,91262.0,0.04465244]
[1767535674335,2.3e-07,91264.0,91262.0,0.04465244]
[1767535676026,0.0004,91265.0,91262.0,0.04465244]
[1767535676223,0.0657424,91266.0,91263.0,0.04520444]
[1767535677164,0.02192,91268.0,91266.0,0.000268]
[1767535677741,0.23030954,91273.0,91266.0,0.000268]
[1767535677742,0.0002305,91273.0,91266.0,0.04933682]
[1767535678066,0.0002305,91273.0,91269.0,0.04933682]
[1767535678067,0.06596736,91273.0,91269.0,0.04933682]
[1767535678206,0.0002305,91273.0,91270.0,0.0102255]
[1767535678406,0.0002305,91273.0,91270.0,0.05956232]
[1767535678611,0.0002305,91273.0,91271.0,0.05458185]
[1767535678811,0.0465416,91272.0,91270.0,0.01500793]
[1767535679055,0.0002305,91273.0,91272.0,0.000999]
[1767535679256,0.02192,91283.0,91272.0,0.000999]
[1767535679455,0.02192,91283.0,91271.0,0.01095638]
[1767535679456,0.01095518,91281.0,91271.0,0.01095638]
[1767535679742,0.01095554,91278.0,91273.0,0.01095614]
[1767535679940,0.01095554,91278.0,91273.0,0.06573664]
[1767535680345,0.01095554,91278.0,91274.0,0.06573604]
[1767535680568,0.01095554,91278.0,91274.0,0.01095602]
[1767535680765,0.05477891,91276.0,91270.0,0.06573895]
[1767535680960,0.0109559,91275.0,91271.0,0.01095638]
[1767535681172,0.06573469,91276.0,91270.0,0.06573895]
[1767535681397,0.0109559,91275.0,91269.0,0.01095662]
[1767535681598,0.01029987,91275.0,91269.0,0.06573962]
[1767535681891,0.0109559,91275.0,91272.0,0.04721096]
[1767535682110,0.0657351,91276.0,91272.0,0.04721096]
[1767535682111,0.01095578,91276.0,91272.0,0.04721096]
[1767535682336,0.05477644,91281.0,91274.0,0.04721096]
[1767535682641,0.05477644,91281.0,91275.0,0.05543628]
[1767535683047,0.0109553,91280.0,91276.0,0.01095578]
[1767535683418,0.06573162,91281.0,91277.0,0.01095566]
[1767535683738,0.05477656,91280.0,91278.0,0.04721096]
[1767535683956,0.06573162,91281.0,91278.0,0.04721096]
[1767535684102,0.06573181,91280.0,91275.0,0.01161285]
[1767535684307,0.01095542,91279.0,91275.0,0.01161285]
[1767535684540,0.01095542,91279.0,91275.0,0.00065695]
[1767535684825,0.01095662,91269.0,91264.0,0.01095722]
[1767535685023,0.21912525,91272.0,91265.0,0.04721096]
[1767535685157,0.01095674,91268.0,91265.0,0.04721096]
[1767535685358,0.01095662,91269.0,91266.0,0.04721096]
[1767535685602,0.05578391,91266.0,91265.0,0.00049834]
[1767535685803,0.000999,91266.0,91265.0,0.00049834]
[1767535685981,0.05478491,91266.0,91265.0,0.0477093]
[1767535686162,0.05478431,91267.0,91265.0,0.0477093]
[1767535686163,0.05478381,91268.0,91265.0,0.0477093]
[1767535686346,0.06574,91269.0,91265.0,0.0477093]
[1767535686696,0.0657394,91271.0,91267.0,0.04721096]
[1767535686898,0.06573767,91272.0,91268.0,0.04721096]
[1767535687339,0.06573767,91272.0,91268.0,0.0581677]
[1767535687538,0.07608159,91272.0,91268.0,0.01095674]
[1767535687702,0.06573767,91272.0,91268.0,0.01095674]
[1767535688319,0.01034392,91271.0,91267.0,0.06574113]
[1767535688725,0.01034392,91271.0,91268.0,0.01095674]
[1767535689326,0.01034392,91271.0,91267.0,0.06574113]
[1767535690029,0.00619923,91271.0,91269.0,0.05478311]
[1767535690340,0.08765546,91275.0,91270.0,0.04721096]
[1767535690536,0.01095602,91274.0,91270.0,0.04621196]
[1767535690902,0.0547814,91272.0,91270.0,0.04621196]
[1767535691518,0.05469099,91272.0,91270.0,0.04621196]
[1767535691967,0.05478191,91271.0,91270.0,0.04621196]
[1767535692101,0.01095662,91269.0,91266.0,0.04721096]
[1767535692522,0.05478431,91267.0,91266.0,0.04721096]
[1767535692723,0.05478491,91266.0,91265.0,0.0477093]
[1767535692928,0.05469449,91266.0,91265.0,0.0477093]
[1767535693376,0.05469449,91266.0,91265.0,0.00049834]
[1767535693535,0.01095794,91258.0,91248.0,0.04721096]
[1767535693730,0.0596413,91259.0,91251.0,0.01095878]
[1767535693957,0.04868348,91258.0,91251.0,0.01095878]
[1767535694290,0.00485944,91257.0,91253.0,0.01095854]
[1767535694415,0.06574786,91258.0,91253.0,0.01095854]
[1767535694615,0.08047622,91258.0,91253.0,0.01095854]
[1767535694970,0.05618174,91258.0,91257.0,0.00065694]
[1767535695110,0.03704946,91258.0,91257.0,0.00065694]
[1767535695314,0.03226639,91258.0,91257.0,0.00065694]
[1767535695563,0.05790855,91258.0,91257.0,0.00065694]
[1767535697470,0.05790855,91258.0,91257.0,9.4e-07]
[1767535697679,0.03046935,91258.0,91257.0,9.4e-07]
[1767535697886,0.08525906,91258.0,91257.0,9.4e-07]
[1767535698084,0.03046935,91258.0,91257.0,9.4e-07]
[1767535698282,0.0109577,91260.0,91257.0,9.4e-07]
[1767535698828,0.06574632,91260.0,91257.0,9.4e-07]
[1767535699071,0.05478931,91259.0,91257.0,9.4e-07]
[1767535699380,0.06574632,91260.0,91259.0,0.04721096]
[1767535699929,0.06574632,91260.0,91259.0,0.04686796]
[1767535702171,0.0109577,91260.0,91259.0,0.04686796]
[1767535702363,0.06574621,91260.0,91259.0,0.04686796]
[1767535702998,0.05478851,91260.0,91259.0,0.04686796]
[1767535703376,0.0547433,91260.0,91259.0,0.04686796]
[1767535703581,0.02192,91261.0,91259.0,0.04686796]
[1767535704000,0.05478851,91260.0,91259.0,0.04686796]
[1767535707549,0.05478971,91258.0,91257.0,9.4e-07]
[1767535707724,0.04868348,91258.0,91257.0,9.4e-07]
[1767535707938,0.05478971,91258.0,91257.0,9.4e-07]
[1767535708354,0.05478971,91258.0,91242.0,0.05479914]
[1767535708355,0.01095926,91247.0,91245.0,0.05478899]
[1767535708594,0.01095926,91247.0,91244.0,0.04736256]
[1767535708770,0.01095914,91248.0,91244.0,0.04736256]
[1767535708978,0.01095926,91247.0,91244.0,0.04736256]
[1767535709222,0.0657557,91247.0,91244.0,0.04736256]
[1767535709417,0.06575534,91248.0,91244.0,0.04736256]
[1767535709719,0.01105006,91247.0,91245.0,0.04721096]